[Event "*** SCC Grand Prix: Titled Tuesday Blitz"]
[Site "Chess.com"]
[Date "2020.07.07"]
[Round "4"]
[White "skslaviaorlova"]
[Black "IMUffeVinther-Schou"]
[Result "0-1"]
[WhiteElo "1949"]
[BlackElo "2267"]
[TimeControl "180+1"]
[EndTime "10:41:44 PDT"]
[Termination "IMUffeVinther-Schou won by resignation"]

1. e4 {[%clk 0:03:00.9]} 1... c5 {[%clk 0:02:59]} 2. c3 {[%clk 0:03:01]} 2...
Nf6 {[%clk 0:02:57.8]} 3. e5 {[%clk 0:03:01.3]} 3... Nd5 {[%clk 0:02:57.8]} 4.
d4 {[%clk 0:03:01.9]} 4... cxd4 {[%clk 0:02:57.2]} 5. Nf3 {[%clk 0:03:02.2]}
5... d6 {[%clk 0:02:56.8]} 6. cxd4 {[%clk 0:03:01.4]} 6... Bd7 {[%clk
0:02:54.9]} 7. Bc4 {[%clk 0:03:01]} 7... Bc6 {[%clk 0:02:54.4]} 8. Bxd5 {[%clk
0:02:52.9]} 8... Bxd5 {[%clk 0:02:53.8]} 9. Nc3 {[%clk 0:02:53.6]} 9... dxe5
{[%clk 0:02:47]} 10. dxe5 {[%clk 0:02:32.8]} 10... e6 {[%clk 0:02:46.2]} 11.
Nxd5 {[%clk 0:02:30.7]} 11... exd5 {[%clk 0:02:47.1]} 12. O-O {[%clk 0:02:30.1]}
12... Be7 {[%clk 0:02:45.6]} 13. Bf4 {[%clk 0:02:13.6]} 13... O-O {[%clk
0:02:44.7]} 14. Qb3 {[%clk 0:02:13.6]} 14... Qd7 {[%clk 0:02:33.9]} 15. Rfd1
{[%clk 0:02:12.8]} 15... Rd8 {[%clk 0:02:33.2]} 16. Rac1 {[%clk 0:02:08.9]}
16... Nc6 {[%clk 0:02:32.4]} 17. Nd4 {[%clk 0:01:40.4]} 17... Rac8 {[%clk
0:02:30.4]} 18. Nb5 {[%clk 0:01:38.4]} 18... Qf5 {[%clk 0:02:22.2]} 19. Bg3
{[%clk 0:01:22.4]} 19... Nxe5 {[%clk 0:02:21.3]} 20. Rxc8 {[%clk 0:01:22.2]}
20... Rxc8 {[%clk 0:02:20]} 21. Qxd5 {[%clk 0:01:21.2]} 21... Rc5 {[%clk
0:01:58.7]} 22. Qd8+ {[%clk 0:00:52.8]} 22... Bf8 {[%clk 0:01:57.4]} 23. Nd6
{[%clk 0:00:47.3]} 23... Qd3 {[%clk 0:01:14.1]} 24. Nxf7 {[%clk 0:00:28.3]}
24... Qxd8 {[%clk 0:01:01.5]} 25. Nxd8 {[%clk 0:00:28.2]} 25... Nd3 {[%clk
0:00:56]} 26. b3 {[%clk 0:00:25.6]} 26... Nb2 {[%clk 0:00:41.1]} 27. Nxb7 {[%clk
0:00:19.5]} 27... Nxd1 {[%clk 0:00:36.3]} 28. Nxc5 {[%clk 0:00:19.7]} 28... Bxc5
{[%clk 0:00:37.2]} 29. Kf1 {[%clk 0:00:19.6]} 29... Nc3 {[%clk 0:00:34.6]} 30.
Be5 {[%clk 0:00:18.2]} 30... Nxa2 {[%clk 0:00:33]} 31. Ke2 {[%clk 0:00:18.6]}
31... Kf7 {[%clk 0:00:32.1]} 32. f3 {[%clk 0:00:18.8]} 32... Nb4 {[%clk
0:00:31.4]} 33. Kd2 {[%clk 0:00:18]} 33... Nc6 {[%clk 0:00:28.4]} 34. Bc7 {[%clk
0:00:14]} 34... Ke6 {[%clk 0:00:26.7]} 35. Kd3 {[%clk 0:00:13.9]} 35... Kd5
{[%clk 0:00:26.6]} 36. Bg3 {[%clk 0:00:12]} 36... g6 {[%clk 0:00:25.2]} 37. Be1
{[%clk 0:00:11.3]} 37... Ne7 {[%clk 0:00:22.8]} 38. Bc3 {[%clk 0:00:10.7]} 38...
Nf5 {[%clk 0:00:21.4]} 39. Bd2 {[%clk 0:00:11]} 39... Nd4 {[%clk 0:00:20.4]} 40.
b4 {[%clk 0:00:08.7]} 40... Bb6 {[%clk 0:00:20.3]} 41. f4 {[%clk 0:00:08.2]}
41... Nc6 {[%clk 0:00:18.5]} 42. g3 {[%clk 0:00:08.1]} 42... Ne7 {[%clk
0:00:17.6]} 43. h3 {[%clk 0:00:07.8]} 43... Nf5 {[%clk 0:00:15.7]} 44. g4 {[%clk
0:00:08.2]} 44... Nd6 {[%clk 0:00:15.1]} 45. Bc3 {[%clk 0:00:07.1]} 45... Ne4
{[%clk 0:00:14.1]} 46. Bg7 {[%clk 0:00:01.8]} 46... Nf2+ {[%clk 0:00:13.2]} 47.
Kc3 {[%clk 0:00:02.1]} 47... Nxh3 {[%clk 0:00:13.4]} 48. f5 {[%clk 0:00:03]}
48... gxf5 {[%clk 0:00:11.2]} 49. gxf5 {[%clk 0:00:03.9]} 49... Ng5 {[%clk
0:00:09.3]} 50. b5 {[%clk 0:00:03.6]} 50... h5 {[%clk 0:00:08.2]} 51. Bf6 {[%clk
0:00:03.9]} 51... Nf7 {[%clk 0:00:07.3]} 52. Bh4 {[%clk 0:00:03.8]} 52... Ke4
{[%clk 0:00:06.9]} 53. f6 {[%clk 0:00:03.4]} 53... Kf5 {[%clk 0:00:06.1]} 54.
Kc4 {[%clk 0:00:03.8]} 54... Kg4 {[%clk 0:00:04.8]} 55. Bf2 {[%clk 0:00:03.1]}
55... h4 {[%clk 0:00:05.7]} 56. Bxh4 {[%clk 0:00:02.6]} 56... Kxh4 {[%clk
0:00:05]} 57. Kd5 {[%clk 0:00:03.5]} 57... Kg5 {[%clk 0:00:05.3]} 58. Ke6 {[%clk
0:00:03.8]} 58... Kg6 {[%clk 0:00:04.4]} 59. Ke7 {[%clk 0:00:03.7]} 59... Bd4
{[%clk 0:00:03.8]} 60. Ke6 {[%clk 0:00:03.9]} 60... Bxf6 {[%clk 0:00:03.9]} 61.
Kd7 {[%clk 0:00:04.4]} 61... Bd4 {[%clk 0:00:03.3]} 62. Kc6 {[%clk 0:00:05.3]}
62... Bb6 {[%clk 0:00:03.3]} 63. Kb7 {[%clk 0:00:05.4]} 63... Kf5 {[%clk
0:00:04.2]} 64. Ka6 {[%clk 0:00:05.7]} 64... Ke4 {[%clk 0:00:04.6]} 65. Kb7
{[%clk 0:00:06.6]} 65... Kd5 {[%clk 0:00:02.6]} 66. Ka6 {[%clk 0:00:07.5]} 66...
Ne5 {[%clk 0:00:02.6]} 67. Kb7 {[%clk 0:00:07.4]} 67... Nd3 {[%clk 0:00:03.3]}
68. Ka6 {[%clk 0:00:05.9]} 68... Nb2 {[%clk 0:00:04.2]} 69. Kb7 {[%clk
0:00:05.8]} 69... Nd1 {[%clk 0:00:05.1]} 70. Ka6 {[%clk 0:00:06]} 70... Nc3
{[%clk 0:00:06]} 71. Kb7 {[%clk 0:00:05.8]} 71... Kc4 {[%clk 0:00:06.9]} 72. Ka6
{[%clk 0:00:06.7]} 72... Nxb5 {[%clk 0:00:07.8]} 73. Kb7 {[%clk 0:00:07.1]} 0-1

[Event "*** SCC Grand Prix: Titled Tuesday Blitz"]
[Site "Chess.com"]
[Date "2020.07.07"]
[Round "4"]
[White "Fortitudine"]
[Black "WPWPWP-2015"]
[Result "1-0"]
[WhiteElo "2254"]
[BlackElo "2406"]
[TimeControl "180+1"]
[EndTime "10:41:48 PDT"]
[Termination "Fortitudine won by resignation"]

1. d4 {[%clk 0:03:00.9]} 1... Nf6 {[%clk 0:02:59.4]} 2. Nc3 {[%clk 0:03:00.4]}
2... d5 {[%clk 0:02:58.6]} 3. Bg5 {[%clk 0:03:00.1]} 3... c6 {[%clk 0:02:57]} 4.
Nf3 {[%clk 0:02:57.3]} 4... Bf5 {[%clk 0:02:55.8]} 5. Ne5 {[%clk 0:02:56.4]}
5... Nbd7 {[%clk 0:02:55.3]} 6. Nxd7 {[%clk 0:02:53.6]} 6... Qxd7 {[%clk
0:02:55.1]} 7. e3 {[%clk 0:02:53.8]} 7... g6 {[%clk 0:02:50.1]} 8. Bd3 {[%clk
0:02:51.5]} 8... Bg7 {[%clk 0:02:47.7]} 9. O-O {[%clk 0:02:46.7]} 9... O-O
{[%clk 0:02:46.4]} 10. Re1 {[%clk 0:02:27.9]} 10... Ne4 {[%clk 0:02:39.8]} 11.
Nxe4 {[%clk 0:02:20.2]} 11... dxe4 {[%clk 0:02:33.6]} 12. Be2 {[%clk 0:02:15.7]}
12... e5 {[%clk 0:02:29.7]} 13. dxe5 {[%clk 0:02:05.6]} 13... Bxe5 {[%clk
0:02:25.3]} 14. Qxd7 {[%clk 0:02:00.8]} 14... Bxd7 {[%clk 0:02:24.6]} 15. c3
{[%clk 0:01:47.7]} 15... Kg7 {[%clk 0:02:19.5]} 16. Be7 {[%clk 0:01:35.2]} 16...
Rfe8 {[%clk 0:02:18.8]} 17. Bc5 {[%clk 0:01:35.2]} 17... b6 {[%clk 0:02:13.5]}
18. Bd4 {[%clk 0:01:35.4]} 18... c5 {[%clk 0:02:13.8]} 19. Bxe5+ {[%clk
0:01:35.1]} 19... Rxe5 {[%clk 0:02:14.7]} 20. Red1 {[%clk 0:01:11.4]} 20... Be6
{[%clk 0:02:12.1]} 21. Rd2 {[%clk 0:01:07.3]} 21... f5 {[%clk 0:02:09.1]} 22. b3
{[%clk 0:00:56.3]} 22... h5 {[%clk 0:02:06.3]} 23. Rad1 {[%clk 0:00:55.9]} 23...
h4 {[%clk 0:01:45.1]} 24. h3 {[%clk 0:00:43]} 24... Kf6 {[%clk 0:01:42.6]} 25.
Bb5 {[%clk 0:00:35.2]} 25... g5 {[%clk 0:01:31.3]} 26. Bd7 {[%clk 0:00:32.6]}
26... Bf7 {[%clk 0:01:27.7]} 27. Rd6+ {[%clk 0:00:31.7]} 27... Ke7 {[%clk
0:01:24.2]} 28. Bc6 {[%clk 0:00:29.3]} 28... Rc8 {[%clk 0:01:23]} 29. Rd7+
{[%clk 0:00:28.8]} 29... Kf8 {[%clk 0:01:20.4]} 30. Bd5 {[%clk 0:00:20.5]} 30...
Bxd5 {[%clk 0:01:12.7]} 31. R1xd5 {[%clk 0:00:21.4]} 31... Rce8 {[%clk
0:01:09.4]} 32. Rxe5 {[%clk 0:00:21.3]} 32... Rxe5 {[%clk 0:01:09.9]} 33. Rxa7
{[%clk 0:00:20.1]} 33... Rd5 {[%clk 0:01:07.9]} 34. Rb7 {[%clk 0:00:16.4]} 34...
Rd1+ {[%clk 0:01:07.1]} 35. Kh2 {[%clk 0:00:16.9]} 35... Rd6 {[%clk 0:01:05.1]}
36. g3 {[%clk 0:00:16.2]} 36... Rd2 {[%clk 0:00:45.8]} 37. Kg2 {[%clk
0:00:15.4]} 37... f4 {[%clk 0:00:38.2]} 38. gxf4 {[%clk 0:00:11.6]} 38... gxf4
{[%clk 0:00:37.7]} 39. exf4 {[%clk 0:00:04.3]} 39... e3 {[%clk 0:00:37.8]} 40.
Rxb6 {[%clk 0:00:04.7]} 40... Rxf2+ {[%clk 0:00:29.6]} 41. Kg1 {[%clk
0:00:04.7]} 41... Rxf4 {[%clk 0:00:25.7]} 42. Re6 {[%clk 0:00:04.4]} 42... Rf3
{[%clk 0:00:25.8]} 43. Kg2 {[%clk 0:00:04.7]} 43... Rg3+ {[%clk 0:00:25.9]} 44.
Kh2 {[%clk 0:00:05.4]} 44... Kf7 {[%clk 0:00:25.2]} 45. Re4 {[%clk 0:00:06]}
45... Rf3 {[%clk 0:00:23.8]} 46. Rxh4 {[%clk 0:00:05.3]} 46... Rf2+ {[%clk
0:00:23.3]} 47. Kg1 {[%clk 0:00:05.2]} 47... Kf6 {[%clk 0:00:17]} 48. Re4 {[%clk
0:00:05]} 48... Re2 {[%clk 0:00:17.3]} 49. Kf1 {[%clk 0:00:04.7]} 49... Rf2+
{[%clk 0:00:16.6]} 50. Ke1 {[%clk 0:00:04.1]} 50... Rf3 {[%clk 0:00:15.2]} 51.
Ke2 {[%clk 0:00:03.8]} 51... Rxh3 {[%clk 0:00:15.4]} 52. Rxe3 {[%clk 0:00:03.3]}
52... Rh2+ {[%clk 0:00:16.3]} 53. Kd3 {[%clk 0:00:04]} 53... Rh4 {[%clk
0:00:15.1]} 54. Re4 {[%clk 0:00:03.6]} 54... Rh2 {[%clk 0:00:11.9]} 55. Kc4
{[%clk 0:00:03.9]} 55... Rxa2 {[%clk 0:00:11.2]} 56. Kxc5 {[%clk 0:00:04.1]}
56... Ra3 {[%clk 0:00:11.6]} 57. Kc4 {[%clk 0:00:04.1]} 57... Kf5 {[%clk
0:00:11.3]} 58. Re3 {[%clk 0:00:04.4]} 58... Ra7 {[%clk 0:00:11.5]} 59. Re1
{[%clk 0:00:04.5]} 59... Rc7+ {[%clk 0:00:10.7]} 60. Kd3 {[%clk 0:00:05.1]}
60... Rd7+ {[%clk 0:00:10.8]} 61. Kc2 {[%clk 0:00:05.8]} 61... Ra7 {[%clk
0:00:10.1]} 62. b4 {[%clk 0:00:06.5]} 62... Rd7 {[%clk 0:00:10.2]} 63. Kb3
{[%clk 0:00:07]} 63... Rh7 {[%clk 0:00:09.3]} 64. b5 {[%clk 0:00:07.3]} 64...
Rd7 {[%clk 0:00:09.9]} 65. c4 {[%clk 0:00:07.4]} 65... Re7 {[%clk 0:00:10.1]}
66. Rxe7 {[%clk 0:00:06.2]} 1-0

[Event "*** SCC Grand Prix: Titled Tuesday Blitz"]
[Site "Chess.com"]
[Date "2020.07.07"]
[Round "4"]
[White "ValentinDragnev"]
[Black "regular_legs"]
[Result "1-0"]
[WhiteElo "2759"]
[BlackElo "2527"]
[TimeControl "180+1"]
[EndTime "10:41:51 PDT"]
[Termination "ValentinDragnev won on time"]

1. d4 {[%clk 0:03:00.9]} 1... d5 {[%clk 0:02:58.6]} 2. c4 {[%clk 0:02:59.8]}
2... e6 {[%clk 0:02:58.7]} 3. Nf3 {[%clk 0:03:00.4]} 3... a6 {[%clk 0:02:57.9]}
4. Nbd2 {[%clk 0:02:56.1]} 4... Nf6 {[%clk 0:02:51.2]} 5. g3 {[%clk 0:02:53.9]}
5... dxc4 {[%clk 0:02:49.4]} 6. Nxc4 {[%clk 0:02:53.3]} 6... b5 {[%clk
0:02:48.5]} 7. Nce5 {[%clk 0:02:52.6]} 7... Bb7 {[%clk 0:02:48.3]} 8. Bg2 {[%clk
0:02:52.9]} 8... c5 {[%clk 0:02:48]} 9. O-O {[%clk 0:02:51.3]} 9... Nbd7 {[%clk
0:02:46]} 10. Nxd7 {[%clk 0:02:44.8]} 10... Qxd7 {[%clk 0:02:43]} 11. Bf4 {[%clk
0:02:30.1]} 11... cxd4 {[%clk 0:02:37]} 12. Qxd4 {[%clk 0:02:29.3]} 12... Qxd4
{[%clk 0:02:02.7]} 13. Nxd4 {[%clk 0:02:30.2]} 13... Bxg2 {[%clk 0:02:02.7]} 14.
Kxg2 {[%clk 0:02:31.1]} 14... Bc5 {[%clk 0:02:03.3]} 15. Nb3 {[%clk 0:02:16.4]}
15... Bb6 {[%clk 0:02:02.9]} 16. Rac1 {[%clk 0:02:16.2]} 16... O-O {[%clk
0:01:30.6]} 17. Rc6 {[%clk 0:02:15.5]} 17... Nd5 {[%clk 0:01:30.3]} 18. Bd6
{[%clk 0:02:04.5]} 18... Rfc8 {[%clk 0:01:28]} 19. Rfc1 {[%clk 0:02:05]} 19...
Rxc6 {[%clk 0:01:24.6]} 20. Rxc6 {[%clk 0:02:05.9]} 20... f5 {[%clk 0:01:17.9]}
21. a3 {[%clk 0:01:57.4]} 21... Kf7 {[%clk 0:01:12.1]} 22. Bc5 {[%clk
0:01:57.5]} 22... Rb8 {[%clk 0:01:11.6]} 23. Kf3 {[%clk 0:01:50.1]} 23... g5
{[%clk 0:00:35.6]} 24. h3 {[%clk 0:01:45.2]} 24... h5 {[%clk 0:00:34.9]} 25. g4
{[%clk 0:01:43.4]} 25... h4 {[%clk 0:00:15.1]} 26. e3 {[%clk 0:01:14.4]} 26...
a5 {[%clk 0:00:11.8]} 27. gxf5 {[%clk 0:01:12.9]} 27... exf5 {[%clk 0:00:11.9]}
28. Nd4 {[%clk 0:01:02.1]} 28... b4 {[%clk 0:00:08.8]} 29. a4 {[%clk 0:00:53.1]}
29... g4+ {[%clk 0:00:07.3]} 30. hxg4 {[%clk 0:00:50.5]} 30... fxg4+ {[%clk
0:00:08.2]} 31. Kxg4 {[%clk 0:00:50.9]} 31... Nf6+ {[%clk 0:00:08.5]} 32. Kf3
{[%clk 0:00:36.7]} 32... Bxc5 {[%clk 0:00:07.3]} 33. Rxc5 {[%clk 0:00:37.6]}
33... Rh8 {[%clk 0:00:07.3]} 34. Nf5 {[%clk 0:00:21]} 34... h3 {[%clk
0:00:07.2]} 35. Ng3 {[%clk 0:00:20.9]} 35... h2 {[%clk 0:00:06.8]} 36. Rc1
{[%clk 0:00:20.9]} 36... Kg6 {[%clk 0:00:06.3]} 37. Rh1 {[%clk 0:00:20.8]} 37...
Rc8 {[%clk 0:00:06.1]} 38. Rxh2 {[%clk 0:00:19]} 38... Rc2 {[%clk 0:00:06.2]}
39. Rh8 {[%clk 0:00:15.9]} 39... Rxb2 {[%clk 0:00:06.1]} 40. Ra8 {[%clk
0:00:16.4]} 40... Ra2 {[%clk 0:00:05.9]} 41. Rxa5 {[%clk 0:00:16.6]} 41... b3
{[%clk 0:00:06.8]} 42. Rb5 {[%clk 0:00:15.8]} 42... b2 {[%clk 0:00:06.9]} 43.
Ne2 {[%clk 0:00:14.5]} 43... Nd7 {[%clk 0:00:05.4]} 44. Nc3 {[%clk 0:00:13]}
44... Ra3 {[%clk 0:00:05.4]} 45. Ne4 {[%clk 0:00:10.4]} 45... Rxa4 {[%clk
0:00:03.9]} 46. Nd2 {[%clk 0:00:07.3]} 46... Ra2 {[%clk 0:00:02.6]} 47. Nc4
{[%clk 0:00:07.3]} 47... b1=Q {[%clk 0:00:02.5]} 48. Rxb1 {[%clk 0:00:06.9]}
48... Rc2 {[%clk 0:00:03.4]} 49. Nb6 {[%clk 0:00:05.5]} 49... Ne5+ {[%clk
0:00:03.7]} 50. Kg3 {[%clk 0:00:05.8]} 50... Rc6 {[%clk 0:00:02.8]} 51. Nd5
{[%clk 0:00:05.7]} 51... Rd6 {[%clk 0:00:02.9]} 52. Nf4+ {[%clk 0:00:06.1]}
52... Kf5 {[%clk 0:00:02.6]} 53. Rb5 {[%clk 0:00:06.7]} 53... Kf6 {[%clk
0:00:01.9]} 54. Rd5 {[%clk 0:00:06]} 54... Rc6 {[%clk 0:00:02]} 55. Rd4 {[%clk
0:00:06.3]} 55... Nf7 {[%clk 0:00:02.3]} 56. Nd5+ {[%clk 0:00:06.4]} 56... Kg7
{[%clk 0:00:02.6]} 57. Rg4+ {[%clk 0:00:06.3]} 57... Kf8 {[%clk 0:00:03]} 58.
Nf4 {[%clk 0:00:06.4]} 58... Rd6 {[%clk 0:00:03.8]} 59. Rg6 {[%clk 0:00:06.5]}
59... Rd7 {[%clk 0:00:03.4]} 60. Ra6 {[%clk 0:00:06.6]} 60... Rb7 {[%clk
0:00:03.1]} 61. Ra8+ {[%clk 0:00:06.8]} 61... Ke7 {[%clk 0:00:03.5]} 62. Ra6
{[%clk 0:00:07.7]} 62... Kf8 {[%clk 0:00:03.6]} 63. Kf3 {[%clk 0:00:07.7]} 63...
Kg7 {[%clk 0:00:03.9]} 64. Kg3 {[%clk 0:00:08]} 64... Ne5 {[%clk 0:00:04.3]} 65.
f3 {[%clk 0:00:08.1]} 65... Rb3 {[%clk 0:00:04]} 66. Ra7+ {[%clk 0:00:07.8]}
66... Kf6 {[%clk 0:00:04.1]} 67. Ra6+ {[%clk 0:00:08]} 67... Kf7 {[%clk
0:00:04.3]} 68. Ra7+ {[%clk 0:00:08.2]} 68... Kf6 {[%clk 0:00:04.7]} 69. Ra5
{[%clk 0:00:08.1]} 69... Nf7 {[%clk 0:00:03.1]} 70. Nd5+ {[%clk 0:00:07.7]}
70... Kg7 {[%clk 0:00:02.8]} 71. Kf4 {[%clk 0:00:07.4]} 71... Rd3 {[%clk
0:00:02.2]} 72. e4 {[%clk 0:00:07.2]} 72... Rd1 {[%clk 0:00:03.1]} 73. Ra7
{[%clk 0:00:07.3]} 73... Kg6 {[%clk 0:00:03.2]} 74. Ne7+ {[%clk 0:00:07.1]}
74... Kg7 {[%clk 0:00:03.3]} 75. Nf5+ {[%clk 0:00:08]} 75... Kf6 {[%clk
0:00:03.8]} 76. Ra6+ {[%clk 0:00:08.4]} 1-0

[Event "*** SCC Grand Prix: Titled Tuesday Blitz"]
[Site "Chess.com"]
[Date "2020.07.07"]
[Round "4"]
[White "CarlosAlbornoz"]
[Black "Grischuk"]
[Result "0-1"]
[WhiteElo "2799"]
[BlackElo "3055"]
[TimeControl "180+1"]
[EndTime "10:41:59 PDT"]
[Termination "Grischuk won by resignation"]

1. e4 {[%clk 0:03:00.9]} 1... e5 {[%clk 0:02:59.8]} 2. Nf3 {[%clk 0:03:01.3]}
2... Nc6 {[%clk 0:03:00.3]} 3. Bb5 {[%clk 0:03:01.8]} 3... a6 {[%clk 0:02:59.8]}
4. Ba4 {[%clk 0:03:02.2]} 4... Nf6 {[%clk 0:02:59.9]} 5. O-O {[%clk 0:03:02.3]}
5... b5 {[%clk 0:03:00.1]} 6. Bb3 {[%clk 0:03:02.3]} 6... Bb7 {[%clk 0:03:00.8]}
7. d3 {[%clk 0:03:00.6]} 7... Be7 {[%clk 0:03:00.1]} 8. Nc3 {[%clk 0:02:59.8]}
8... O-O {[%clk 0:02:59.8]} 9. a3 {[%clk 0:03:00]} 9... d6 {[%clk 0:02:59.1]}
10. Ne2 {[%clk 0:02:58.4]} 10... Qd7 {[%clk 0:02:56.4]} 11. Ng3 {[%clk
0:02:58.3]} 11... Rfe8 {[%clk 0:02:49.9]} 12. h3 {[%clk 0:02:45]} 12... d5
{[%clk 0:02:34.6]} 13. exd5 {[%clk 0:02:32.6]} 13... Nxd5 {[%clk 0:02:35.5]} 14.
Re1 {[%clk 0:02:32.9]} 14... Bf8 {[%clk 0:02:33.9]} 15. Ba2 {[%clk 0:02:24.9]}
15... Rad8 {[%clk 0:02:29.9]} 16. Bg5 {[%clk 0:02:20.1]} 16... f6 {[%clk
0:02:29.9]} 17. Be3 {[%clk 0:02:15.1]} 17... Kh8 {[%clk 0:02:29.1]} 18. Nh4
{[%clk 0:02:08.8]} 18... Qf7 {[%clk 0:01:58.8]} 19. Nhf5 {[%clk 0:01:58.7]}
19... Nce7 {[%clk 0:01:52.9]} 20. Nxe7 {[%clk 0:01:53.8]} 20... Bxe7 {[%clk
0:01:48.6]} 21. Ne4 {[%clk 0:01:44.8]} 21... Qg6 {[%clk 0:01:41]} 22. Qg4 {[%clk
0:01:39.6]} 22... Bf8 {[%clk 0:01:29]} 23. Qxg6 {[%clk 0:01:38.4]} 23... hxg6
{[%clk 0:01:29.9]} 24. Bc5 {[%clk 0:01:31.4]} 24... Kh7 {[%clk 0:01:21.4]} 25.
Bxf8 {[%clk 0:01:30.8]} 25... Rxf8 {[%clk 0:01:22.3]} 26. Nc5 {[%clk 0:01:29.8]}
26... Bc8 {[%clk 0:01:22.9]} 27. a4 {[%clk 0:01:18.5]} 27... Nb4 {[%clk
0:00:45]} 28. Bb3 {[%clk 0:01:18]} 28... g5 {[%clk 0:00:38.1]} 29. axb5 {[%clk
0:01:17.4]} 29... axb5 {[%clk 0:00:39]} 30. Ra7 {[%clk 0:01:15]} 30... c6 {[%clk
0:00:32.8]} 31. Rea1 {[%clk 0:00:51.2]} 31... Nd5 {[%clk 0:00:29.9]} 32. Bxd5
{[%clk 0:00:50.1]} 32... Rxd5 {[%clk 0:00:24.6]} 33. b4 {[%clk 0:00:49.1]} 33...
Bf5 {[%clk 0:00:23.3]} 34. Rc7 {[%clk 0:00:48.2]} 34... Rc8 {[%clk 0:00:23.4]}
35. Re7 {[%clk 0:00:44.6]} 35... Kh6 {[%clk 0:00:13.4]} 36. Raa7 {[%clk
0:00:41.8]} 36... Rg8 {[%clk 0:00:14.1]} 37. g4 {[%clk 0:00:40.2]} 37... Bg6
{[%clk 0:00:12.7]} 38. Rac7 {[%clk 0:00:35.6]} 38... Rd4 {[%clk 0:00:12.6]} 39.
c3 {[%clk 0:00:34.7]} 39... Rd6 {[%clk 0:00:11.4]} 40. Kg2 {[%clk 0:00:27.4]}
40... Bxd3 {[%clk 0:00:10.4]} 41. Nxd3 {[%clk 0:00:27.4]} 41... Rxd3 {[%clk
0:00:11.3]} 42. Rxc6 {[%clk 0:00:27.7]} 42... Rd2 {[%clk 0:00:10.4]} 43. Rcc7
{[%clk 0:00:26.2]} 43... Rc2 {[%clk 0:00:09.5]} 44. Kg3 {[%clk 0:00:23.5]} 44...
Rd8 {[%clk 0:00:07.9]} 45. Rxg7 {[%clk 0:00:20.8]} 45... Rxc3+ {[%clk
0:00:08.3]} 46. f3 {[%clk 0:00:20.5]} 46... Rxc7 {[%clk 0:00:08]} 47. Rxc7
{[%clk 0:00:20.7]} 47... Rd4 {[%clk 0:00:08.5]} 48. h4 {[%clk 0:00:15.4]} 48...
gxh4+ {[%clk 0:00:09.4]} 49. Kxh4 {[%clk 0:00:16.3]} 49... Rxb4 {[%clk
0:00:09.1]} 50. Rc6 {[%clk 0:00:16.1]} 50... Kg6 {[%clk 0:00:08.9]} 51. Rb6
{[%clk 0:00:16.4]} 51... Rf4 {[%clk 0:00:06.6]} 52. Kg3 {[%clk 0:00:16.2]} 52...
b4 {[%clk 0:00:06.6]} 53. Kg2 {[%clk 0:00:15.4]} 53... Rc4 {[%clk 0:00:06.3]}
54. Kg3 {[%clk 0:00:15.4]} 54... Kg5 {[%clk 0:00:06.4]} 55. Rb8 {[%clk
0:00:14.6]} 55... Kg6 {[%clk 0:00:05.8]} 56. Rb7 {[%clk 0:00:14.4]} 56... Rd4
{[%clk 0:00:05.2]} 57. Rb6 {[%clk 0:00:14.4]} 57... Rf4 {[%clk 0:00:05]} 58. Rb5
{[%clk 0:00:13.1]} 58... Kf7 {[%clk 0:00:05.1]} 59. Rb6 {[%clk 0:00:13.2]} 59...
Ke7 {[%clk 0:00:05.4]} 60. Kf2 {[%clk 0:00:11.3]} 60... Kd7 {[%clk 0:00:05.6]}
61. Ke3 {[%clk 0:00:11]} 61... Kc7 {[%clk 0:00:06]} 62. Rb5 {[%clk 0:00:10.5]}
62... Kc6 {[%clk 0:00:06.6]} 63. Rb8 {[%clk 0:00:10.7]} 63... Kc5 {[%clk
0:00:07.2]} 64. Re8 {[%clk 0:00:07.9]} 64... Kd5 {[%clk 0:00:06.3]} 65. Rd8+
{[%clk 0:00:07.1]} 65... Kc4 {[%clk 0:00:06.6]} 66. Rc8+ {[%clk 0:00:07.3]}
66... Kb3 {[%clk 0:00:06.4]} 67. Re8 {[%clk 0:00:07.6]} 67... Kc3 {[%clk
0:00:05.4]} 68. g5 {[%clk 0:00:07.6]} 68... fxg5 {[%clk 0:00:06.3]} 69. Rxe5
{[%clk 0:00:07.5]} 69... b3 {[%clk 0:00:06.6]} 70. Rxg5 {[%clk 0:00:05.8]} 70...
Rc4 {[%clk 0:00:06]} 71. Rg1 {[%clk 0:00:03.8]} 71... b2 {[%clk 0:00:06.3]} 72.
f4 {[%clk 0:00:03.9]} 72... Rb4 {[%clk 0:00:03.3]} 73. f5 {[%clk 0:00:03.9]}
73... Kc2 {[%clk 0:00:01.5]} 74. Rg2+ {[%clk 0:00:03.6]} 74... Kc1 {[%clk
0:00:01.7]} 75. Rg1+ {[%clk 0:00:03.6]} 75... Kc2 {[%clk 0:00:02.4]} 76. Rg2+
{[%clk 0:00:04.5]} 76... Kb3 {[%clk 0:00:03]} 77. Rg1 {[%clk 0:00:03.9]} 77...
Ka2 {[%clk 0:00:03.6]} 78. f6 {[%clk 0:00:03.8]} 78... b1=Q {[%clk 0:00:04.5]}
79. Rxb1 {[%clk 0:00:03.8]} 79... Kxb1 {[%clk 0:00:05.4]} 80. f7 {[%clk
0:00:03.9]} 80... Rb8 {[%clk 0:00:05.5]} 81. Ke4 {[%clk 0:00:04.8]} 81... Rf8
{[%clk 0:00:06.4]} 82. Ke5 {[%clk 0:00:05.4]} 82... Rxf7 {[%clk 0:00:07.3]} 83.
Ke6 {[%clk 0:00:06.3]} 83... Ra7 {[%clk 0:00:07.8]} 0-1